[Event "Israeli Team U18-ch 2022"]
[Site "Be'er Ya'akov"]
[Date "2022.08.15"]
[Round "5.5"]
[White "Aizenberg, Benny"]
[Black "Sokolovsky, Yahli"]
[Result "1-0"]
[ECO "C45"]
[WhiteElo "2361"]
[BlackElo "2386"]
[Annotator "TA"]
[PlyCount "106"]
[EventDate "2022.08.14"]
[EventCountry "ISR"]
[SourceTitle "playchess.com"]
[Source "ChessBase"]
[SourceQuality "1"]
[TimeControl "3000+10"]

{[%evp 9,106,16,15,21,21,15,16,14,13,16,7,0,0,0,0,-8,-8,-13,-15,-6,-13,-13,-6,-63,-42,-27,0,-47,-16,-43,0,0,0,0,0,0,0,0,-7,0,0,0,0,0,0,0,0,0,0,0,0,0,10,0,6,0,18,0,31,16,91,88,97,97,212,223,273,270,418,394,616,571,604,568,604,577,881,807,741,692,1008,981,1178,1086,1066,1059,1508,1366,1218,958,1845,1767,12843,12843,12844,12844,12845,12845,12846]} 1. e4 {[%emt 0:00:01]} e5 {[%emt 0:00:05]} 2. Nf3 {[%emt 0:00:03]} Nc6 {[%emt 0:00:06]} 3. d4 {[%emt 0:00:03]} exd4 {[%emt 0:00:20]} 4. Nxd4 {[%emt 0:00:02]} Qf6 {[%emt 0:01:52]} 5. Nf3 {[%emt 0:00:02]} Bb4+ {[%emt 0:00:38]} 6. c3 {[%emt 0:00:14] C45: Scotch Game.} Bc5 {[%emt 0:00:05]} 7. Be2 {[%emt 0:03:58]} h6 {[%emt 0:01:56]} 8. O-O {[%emt 0:00:54] The position is equal.} Nge7 {[%emt 0:00:08][%cal Bg8e7,Be7d5,Bd5b6][%mdl 32]} 9. Nbd2 {[%emt 0:00:51][%cal Oe4e5]} O-O {[%emt 0:00:38]} 10. Nc4 {[%emt 0:01:12]} d5 {[%emt 0:03:00]} 11. exd5 {[%emt 0:00:30]} Rd8 {[%emt 0:00:08] [#]} 12. Ne3 $146 {[%emt 0:03:36]} ({Predecessor:} 12. Be3 Rxd5 13. Qb3 Rb8 14. Rad1 Bxe3 15. Nxe3 Rxd1 16. Rxd1 Be6 17. Qa4 a6 18. a3 {1-0 (43) Tomczak,J (2604)-Gumularz,S (2512) Polanica Zdroj 2021}) 12... Bxe3 {[%emt 0:01:28]} 13. fxe3 {[%emt 0:00:08]} Nxd5 {[%emt 0:08:49]} ({Resist} 13... Rxd5 14. Nd4 Qg6 15. Bc4 $16) 14. Nd4 $132 {[%emt 0:07:18][%mdl 2048] White is fighting back} Qe7 {[%emt 0:01:36]} 15. Nxc6 {[%emt 0:01:28]} bxc6 {[%emt 0:00:02]} 16. Bc4 {[%emt 0:00:23]} (16. Qa4 $11) 16... Be6 {[%emt 0:02:48] Threatens to win with ...Nb6.} 17. Qf3 {[%emt 0:02:20]} Nb6 {[%emt 0:07:46]} 18. Be2 {[%emt 0:02:32]} (18. Bb3 $11) 18... Bd5 {[%emt 0:01:03]} 19. Qg3 {[%emt 0:01:02]} Rd6 {[%emt 0:03:12] aiming for ...Rg6.} 20. Bh5 {[%emt 0:02:39] Inhibits Rg6.} Rf6 {[%emt 0:08:16]} 21. Rxf6 {[%emt 0:06:09]} Qxf6 {[%emt 0:00:01]} 22. e4 {[%emt 0:00:12]} Bxe4 {[%emt 0:00:26]} 23. Be3 {[%emt 0:00:07] Rf1 is the strong threat.} Qd6 {[%emt 0:02:11]} 24. Rf1 {[%emt 0:02:42]} Bg6 {[%emt 0:03:11]} 25. Bxg6 {[%emt 0:05:13]} Qxg6 {[%emt 0:00:57]} 26. Qxc7 {[%emt 0:02:18]} Nd5 {[%emt 0:00:08]} 27. Qe5 {[%emt 0:00:04]} Nxe3 {[%emt 0:00:41]} 28. Qxe3 $11 {[%emt 0:00:02][%mdl 4096] Endgame KQR-KQR} Rd8 {[%emt 0:00:40]} 29. h3 {[%emt 0:01:18]} Kh7 {[%emt 0:01:40]} 30. Qf4 {[%emt 0:00:55]} Rd7 {[%emt 0:00:41]} 31. Kh2 {[%emt 0:00:19]} Re7 {[%emt 0:00:21]} 32. Rf2 {[%emt 0:00:30]} Rd7 {[%emt 0:00:24]} 33. Qe5 {[%emt 0:00:24]} Rb7 {[%emt 0:00:11]} 34. Rd2 {[%emt 0:00:21]} Qe6 {[%emt 0:00:10]} (34... Rb5 $11 {keeps the balance.} 35. Qe3 Qf6) 35. Qxe6 $16 {[%emt 0:01:18] White is more active. White stays focused until the end.} fxe6 {[%emt 0:00:01] KR-KR} 36. b3 $1 {[%emt 0:00:21]} Rb6 {[%emt 0:00:12] [#]} (36... Kg6 $16 {is a better defense.}) 37. Rd6 $1 $18 {[%emt 0:00:17]} Ra6 {[%emt 0:00:17]} 38. a4 {[%emt 0:00:05][%cal Ba2a4,Ba4a5][%mdl 32]} ({Less strong is} 38. Rxe6 Rxa2 39. Rxc6 a5 $16) 38... Rb6 {[%emt 0:00:01] [#]} (38... Kg6 $142 39. Rxe6+ Kf5) 39. b4 $1 {[%emt 0:00:04]} e5 {[%emt 0:00:20]} (39... Ra6 $142 40. a5 (40. Rxe6 Rxa4 41. Rxc6 Ra3 $18) 40... Kg6) 40. a5 {[%emt 0:00:37] White is clearly winning.} Rb7 {[%emt 0:00:00]} 41. Rxc6 {[%emt 0:00:08]} Kg8 {[%emt 0:00:12]} 42. Kg3 {[%emt 0:00:44]} Rf7 {[%emt 0:00:10]} 43. c4 {[%emt 0:00:34]} e4 {[%emt 0:00:13]} 44. Re6 {[%emt 0:00:06]} Rf1 {[%emt 0:00:13]} 45. Rxe4 {[%emt 0:00:06]} Rb1 {[%emt 0:00:05]} 46. b5 {[%emt 0:00:04][%cal Bb4b5,Bb5b6][%mdl 32]} Kf7 {[%emt 0:00:15] Prevents Re7+.} 47. Re5 {[%emt 0:00:41]} Rb4 {[%emt 0:00:12]} 48. Rc5 {[%emt 0:00:05]} Ke6 {[%emt 0:00:05]} 49. Rc7 {[%emt 0:00:04][%csl LRa7,LRg7]} g5 {[%emt 0:00:07]} 50. Rxa7 {[%emt 0:00:10]} Rxc4 {[%emt 0:00:02]} 51. b6 {[%emt 0:00:06] Threatening mate with b7.} Rc3+ {[%emt 0:00:24]} 52. Kh2 {[%emt 0:00:19] Intending b7 and mate.} g4 {[%emt 0:00:05]} 53. hxg4 {[%emt 0:00:04]} Kd5 {[%emt 0:00:28] Weighted Error Value: White=0.08 (flawless) /Black=0.29 (precise)} 1-0

[Event "Israeli Team U18-ch 2022"]
[Site "Be'er Ya'akov"]
[Date "2022.08.15"]
[Round "5.6"]
[White "Borodety, Itamar"]
[Black "Sherman, Reem"]
[Result "1/2-1/2"]
[ECO "E68"]
[WhiteElo "1939"]
[BlackElo "2071"]
[Annotator "NA RC"]
[PlyCount "88"]
[EventDate "2022.08.14"]
[EventCountry "ISR"]
[SourceTitle "playchess.com"]
[Source "ChessBase"]
[SourceQuality "1"]
[TimeControl "3000+10"]

1. Nf3 {[%emt 0:00:18]} Nf6 {[%emt 0:00:34]} 2. g3 {[%emt 0:00:03]} g6 {[%emt 0:00:11]} 3. Bg2 {[%emt 0:00:11]} Bg7 {[%emt 0:00:07]} 4. O-O {[%emt 0:00:05]} O-O {[%emt 0:00:13]} 5. d4 {[%emt 0:00:03]} d6 {[%emt 0:00:16]} 6. c4 {[%emt 0:00:03]} Nbd7 {[%emt 0:00:21]} 7. Nc3 {[%emt 0:00:11]} e5 {[%emt 0:00:36]} 8. e4 {[%emt 0:00:02]} a6 {[%emt 0:00:32]} 9. Re1 {[%emt 0:01:52]} exd4 {[%emt 0:00:19]} 10. Nxd4 {[%emt 0:00:10]} Ne5 {[%emt 0:00:08]} 11. b3 {[%emt 0:03:11]} c5 {[%emt 0:00:29]} 12. Nc2 {[%emt 0:01:14]} Rb8 {[%emt 0:01:17]} 13. h3 {[%emt 0:06:07]} Nc6 {[%emt 0:00:26]} 14. Bb2 {[%emt 0:15:16]} b5 {[%emt 0:00:43]} 15. cxb5 {[%emt 0:01:48]} axb5 {[%emt 0:00:15]} 16. Nd5 {[%emt 0:01:42]} Nxd5 {[%emt 0:01:11]} 17. Bxg7 {[%emt 0:00:04]} Kxg7 {[%emt 0:00:10]} 18. Qxd5 {[%emt 0:00:09]} Bb7 {[%emt 0:00:17]} 19. Qd3 {[%emt 0:02:52]} Ne5 {[%emt 0:07:08]} 20. Qxb5 {[%emt 0:00:24]} Bxe4 {[%emt 0:01:44]} 21. Qe2 {[%emt 0:00:07]} Bxg2 {[%emt 0:02:26]} 22. Kxg2 {[%emt 0:17:58]} Qc7 {[%emt 0:01:36]} 23. Rad1 {[%emt 0:00:00]} Nc6 {[%emt 0:05:30]} 24. Qd3 {[%emt 0:00:00]} Rbd8 {[%emt 0:02:42]} 25. Qc3+ {[%emt 0:00:00]} f6 {[%emt 0:01:50]} 26. Ne3 {[%emt 0:00:00]} Rd7 {[%emt 0:00:57]} 27. Kh2 {[%emt 0:00:00]} Nd4 {[%emt 0:01:08]} 28. Nc2 {[%emt 0:00:00]} Nb5 {[%emt 0:02:14]} 29. Qc4 {[%emt 0:00:00]} Qb7 {[%emt 0:00:55]} 30. a4 {[%emt 0:00:00]} Na7 {[%emt 0:03:02]} 31. b4 {[%emt 0:00:00]} cxb4 {[%emt 0:00:43]} 32. Nxb4 {[%emt 0:00:00]} Qf3 {[%emt 0:01:11]} 33. Rd2 {[%emt 0:00:00]} Rff7 {[%emt 0:03:57]} 34. Re3 {[%emt 0:00:00]} Qf5 {[%emt 0:00:13]} 35. Qd4 {[%emt 0:00:00]} Qa5 {[%emt 0:01:29]} 36. Ra2 {[%emt 0:01:32]} Rb7 {[%emt 0:00:53]} 37. Nd5 {[%emt 0:00:35]} Nc6 {[%emt 0:00:36]} 38. Qd2 {[%emt 0:00:09]} Ra7 {[%emt 0:01:49]} 39. Nf4 {[%emt 0:00:07]} Qxd2 {[%emt 0:00:56]} 40. Rxd2 {[%emt 0:00:01]} Rxa4 {[%emt 0:00:37]} 41. Rxd6 {[%emt 0:00:16]} Ne5 {[%emt 0:00:29]} 42. Rd8 {[%emt 0:00:03]} Ra2 {[%emt 0:01:31]} 43. Kg2 {[%emt 0:00:06]} Rb7 {[%emt 0:00:10]} 44. Nd3 {[%emt 0:00:23]} Nxd3 {[%emt 0:00:22]} 1/2-1/2

[Event "Israeli Team U18-ch 2022"]
[Site "Be'er Ya'akov"]
[Date "2022.08.15"]
[Round "5.7"]
[White "Shteiman, Yuval"]
[Black "Bilenkiy, Maksym"]
[Result "1/2-1/2"]
[ECO "A11"]
[WhiteElo "2034"]
[BlackElo "1650"]
[Annotator "NA RC"]
[PlyCount "56"]
[EventDate "2022.08.14"]
[EventCountry "ISR"]
[SourceTitle "playchess.com"]
[Source "ChessBase"]
[SourceQuality "1"]
[TimeControl "3000+10"]

1. c4 {[%emt 0:00:02]} c6 {[%emt 0:00:00]} 2. g3 {[%emt 0:00:05]} d5 {[%emt 0:00:06]} 3. Bg2 {[%emt 0:00:02]} Nf6 {[%emt 0:00:05]} 4. Nf3 {[%emt 0:00:05]} g6 {[%emt 0:00:21]} 5. b3 {[%emt 0:00:36]} Bg7 {[%emt 0:00:07]} 6. Bb2 {[%emt 0:00:14]} O-O {[%emt 0:00:10]} 7. O-O {[%emt 0:00:04]} e6 {[%emt 0:00:12]} 8. d3 {[%emt 0:02:06]} b6 {[%emt 0:00:35]} 9. Nbd2 {[%emt 0:01:06]} Bb7 {[%emt 0:01:05]} 10. Qc2 {[%emt 0:00:26]} c5 {[%emt 0:00:52]} 11. e3 {[%emt 0:09:32]} Nbd7 {[%emt 0:02:19]} 12. d4 {[%emt 0:02:15]} Qc7 {[%emt 0:03:27]} 13. Rfd1 {[%emt 0:02:51]} Rfd8 {[%emt 0:01:31]} 14. Rac1 {[%emt 0:01:16]} Rac8 {[%emt 0:01:01]} 15. h3 {[%emt 0:02:38]} h6 {[%emt 0:11:14]} 16. Ne5 {[%emt 0:02:09]} Nxe5 {[%emt 0:03:24]} 17. dxe5 {[%emt 0:00:05]} Nd7 {[%emt 0:01:32]} 18. f4 {[%emt 0:00:05]} Nf8 {[%emt 0:00:59]} 19. Nf3 {[%emt 0:02:49]} Rd7 {[%emt 0:01:50]} 20. Rd2 {[%emt 0:01:41]} Rcd8 {[%emt 0:00:21]} 21. Rcd1 {[%emt 0:00:15]} Bc6 {[%emt 0:00:25]} 22. h4 {[%emt 0:04:44]} Qb7 {[%emt 0:00:18]} 23. cxd5 {[%emt 0:02:55]} Bxd5 {[%emt 0:01:21]} 24. Ne1 {[%emt 0:01:46]} Bxg2 {[%emt 0:06:15]} 25. Rxd7 {[%emt 0:01:45]} Rxd7 {[%emt 0:00:31]} 26. Rxd7 {[%emt 0:00:16]} Nxd7 {[%emt 0:00:28]} 27. Qxg2 {[%emt 0:00:25]} Qxg2+ {[%emt 0:03:34]} 28. Kxg2 {[%emt 0:00:06]} Nb8 {[%emt 0:02:00]} 1/2-1/2

[Event "Israeli Team U18-ch 2022"]
[Site "Be'er Ya'akov"]
[Date "2022.08.15"]
[Round "5.8"]
[White "Ratner, Krystyna"]
[Black "Friedland, Eldar"]
[Result "0-1"]
[ECO "E94"]
[WhiteElo "1553"]
[BlackElo "1990"]
[Annotator "NA RC"]
[PlyCount "42"]
[EventDate "2022.08.14"]
[EventCountry "ISR"]
[SourceTitle "playchess.com"]
[Source "ChessBase"]
[SourceQuality "1"]
[TimeControl "3000+10"]

1. d4 {[%emt 0:00:04]} Nf6 {[%emt 0:00:06]} 2. Nf3 {[%emt 0:00:14]} g6 {[%emt 0:00:31]} 3. c4 {[%emt 0:00:20]} Bg7 {[%emt 0:00:20]} 4. Nc3 {[%emt 0:00:06]} O-O {[%emt 0:00:22]} 5. e4 {[%emt 0:00:13]} d6 {[%emt 0:00:11]} 6. Be2 {[%emt 0:01:04]} Na6 {[%emt 0:00:34]} 7. O-O {[%emt 0:00:49]} e5 {[%emt 0:00:34]} 8. d5 {[%emt 0:05:05]} Nc5 {[%emt 0:00:32]} 9. Qc2 {[%emt 0:00:15]} a5 {[%emt 0:00:15]} 10. Bg5 {[%emt 0:03:53]} h6 {[%emt 0:01:58]} 11. Be3 {[%emt 0:00:08]} b6 {[%emt 0:01:15]} 12. Nd2 {[%emt 0:00:53]} Bg4 {[%emt 0:00:58]} 13. f3 {[%emt 0:00:59]} Bd7 {[%emt 0:00:14]} 14. b3 {[%emt 0:00:32]} Nh5 {[%emt 0:01:13]} 15. a3 {[%emt 0:01:27]} Bf6 {[%emt 0:03:53]} 16. Bxh6 {[%emt 0:02:03]} Bg5 {[%emt 0:01:10]} 17. Bxg5 {[%emt 0:18:02]} Qxg5 {[%emt 0:00:06]} 18. b4 {[%emt 0:04:10]} axb4 {[%emt 0:02:24]} 19. axb4 {[%emt 0:00:07]} Bh3 {[%emt 0:00:17]} 20. g4 {[%emt 0:02:45]} Qe3+ {[%emt 0:00:31]} 21. Kh1 {[%emt 0:00:40]} Nf4 {[%emt 0:00:15]} 0-1

[Event "Israeli Team U18-ch 2022"]
[Site "Be'er Ya'akov"]
[Date "2022.08.15"]
[Round "5.9"]
[White "Gavriely, Or"]
[Black "Zemach, Nadav"]
[Result "1/2-1/2"]
[ECO "D31"]
[WhiteElo "2072"]
[BlackElo "2225"]
[Annotator "TA"]
[PlyCount "65"]
[EventDate "2022.08.14"]
[EventCountry "ISR"]
[SourceTitle "playchess.com"]
[Source "ChessBase"]
[SourceQuality "1"]
[TimeControl "3000+10"]

{[%evp 9,65,24,25,31,48,9,9,8,14,0,61,60,65,56,67,63,68,31,44,0,13,8,31,0,0,0,5,-9,0,0,0,0,0,0,0,0,0,-22,-24,-27,-22,-22,-22,-21,-18,-24,-20,-23,-24,-26,-28,-15,-18,-26,-11,-9,0,0]} 1. d4 {[%emt 0:00:08]} d5 {[%emt 0:00:05]} 2. c4 {[%emt 0:00:04]} e6 {[%emt 0:00:04]} 3. Nc3 {[%emt 0:00:02]} a6 {[%emt 0:00:05]} 4. cxd5 {[%emt 0:00:09]} exd5 {[%emt 0:00:06]} 5. Nf3 {[%emt 0:00:04]} c6 {[%emt 0:00:05]} 6. Bf4 {[%emt 0:00:07] D31: Queen's Gambit Declined: Semi-Slav without ...Nf6 (+ Marshall Gambit and Noteboom) and Exchange Variation lines without ...Nf6.} Bd6 {[%emt 0:00:32]} 7. Bg3 {[%emt 0:00:07]} Nf6 {[%emt 0:00:07]} 8. e3 {[%emt 0:00:01]} O-O {[%emt 0:00:12]} 9. Bd3 {[%emt 0:00:03] [#]} c5 $146 {[%emt 0:01:14]} ({Black should play} 9... Bxg3 $11 10. hxg3 Be6) ({Predecessor:} 9... Re8 10. Qc2 a5 11. Ne5 Na6 12. a3 Nc7 13. Bh4 Bxe5 14. dxe5 Rxe5 15. Bxh7+ Kh8 {0-1 (56) Holt,C (2549)-Howell,D (2658) Chess.com INT 2021}) 10. dxc5 {[%emt 0:01:44]} Bxc5 {[%emt 0:00:09]} 11. O-O {[%emt 0:00:20]} Nc6 {[%emt 0:00:58]} 12. Rc1 {[%emt 0:03:28]} Ba7 {[%emt 0:00:19]} 13. a3 {[%emt 0:04:25] White is more active.} h6 {[%emt 0:02:26]} 14. Qc2 {[%emt 0:03:26]} Be6 {[%emt 0:09:36]} 15. Rfd1 {[%emt 0:02:32]} Rc8 {[%emt 0:00:16]} 16. Bf5 {[%emt 0:04:19]} Qe7 {[%emt 0:01:53]} 17. Bxe6 {[%emt 0:00:36]} fxe6 {[%emt 0:02:03]} 18. Qe2 {[%emt 0:06:00]} Rfd8 {[%emt 0:02:46]} (18... Nh5 {feels hotter.} 19. Be5 Nxe5 20. Nxe5 Qg5) 19. Ne5 {[%emt 0:01:50]} Nxe5 {[%emt 0:03:19]} 20. Bxe5 {[%emt 0:00:01]} Nd7 {[%emt 0:00:10][%cal Bf6d7,Bd7c5,Bc5b3][%mdl 32]} 21. Bd4 {[%emt 0:00:31]} Bb8 {[%emt 0:02:43]} 22. f4 {[%emt 0:03:20]} Nc5 {[%emt 0:00:52]} 23. g3 {[%emt 0:00:47]} Nb3 {[%emt 0:01:54]} 24. Rb1 {[%emt 0:02:22]} Rc4 {[%emt 0:02:06]} 25. Rd3 {[%emt 0:01:54]} Nxd4 {[%emt 0:01:21]} 26. exd4 {[%emt 0:00:13]} Ba7 {[%emt 0:00:18]} 27. Rbd1 {[%emt 0:00:37]} Qf6 {[%emt 0:00:13][%cal Ra7d4]} 28. Qe3 {[%emt 0:01:28]} Rdc8 {[%emt 0:00:40]} 29. Kg2 {[%emt 0:00:48]} b5 {[%emt 0:00:15]} 30. Ne2 {[%emt 0:01:40][%cal Bc3e2,Be2g1,Bg1f3][%mdl 32]} Bb6 {[%emt 0:04:36]} 31. Ng1 {[%emt 0:00:36]} Rc2+ {[%emt 0:00:34]} 32. R1d2 {[%emt 0:00:08]} Rc1 {[%emt 0:01:25]} 33. Nf3 {[%emt 0:11:50] Weighted Error Value: White=0.08 (flawless) /Black=0.07 (flawless)} 1/2-1/2

[Event "Israeli Team U18-ch 2022"]
[Site "Be'er Ya'akov"]
[Date "2022.08.15"]
[Round "5.10"]
[White "Vagman, Roy"]
[Black "Gadasi, Noam"]
[Result "1-0"]
[ECO "B52"]
[WhiteElo "2180"]
[BlackElo "1993"]
[Annotator "TA"]
[PlyCount "55"]
[EventDate "2022.08.14"]
[EventCountry "ISR"]
[SourceTitle "playchess.com"]
[Source "ChessBase"]
[SourceQuality "1"]
[TimeControl "3000+10"]

{[%evp 23,54,35,39,39,37,35,45,7,61,49,69,46,51,51,57,31,110,114,103,106,96,72,223,200,198,194,421,368,486,474,29994,29995,29999]} 1. e4 {[%emt 0:00:03]} c5 {[%emt 0:00:10]} 2. Nf3 {[%emt 0:00:07]} d6 {[%emt 0:00:04]} 3. Bb5+ {[%emt 0:00:07]} Bd7 {[%emt 0:00:08]} 4. Bxd7+ {[%emt 0:00:06]} Qxd7 {[%emt 0:00:06]} 5. c4 {[%emt 0:00:07]} Nc6 {[%emt 0:00:50]} 6. d4 {[%emt 0:00:17]} cxd4 {[%emt 0:00:20]} 7. Nxd4 {[%emt 0:00:07]} Nf6 {[%emt 0:00:22]} 8. Nc3 {[%emt 0:00:11]} g6 {[%emt 0:00:10]} 9. f3 {[%emt 0:00:14]} Bg7 {[%emt 0:00:09]} 10. Be3 {[%emt 0:00:09]} O-O {[%emt 0:00:15]} 11. O-O {[%emt 0:00:11]} Rfc8 {[%emt 0:04:15]} 12. b3 {[%emt 0:01:55]} Rab8 {[%emt 0:01:24]} 13. Rc1 {[%emt 0:01:22] B52: Sicilian: Moscow Variation with 3...Bd7.} a6 {[%emt 0:02:09][%cal Ob7b5]} 14. Nxc6 {[%emt 0:01:08]} Rxc6 {[%emt 0:00:42] [#]} 15. Qe2 $146 {[%emt 0:01:21] White is slightly better.} ({Predecessor:} 15. a4 Qd8 16. Qd3 Nd7 17. Rfd1 Nc5 18. Qc2 Ne6 19. Nd5 b5 20. Nb4 Rcc8 21. Nxa6 {0-1 (37) Bosiocic,M (2621)-Nikolovski,N (2383) Ohrid 2019}) 15... b6 {[%emt 0:03:13]} ({Black should play} 15... b5 $11) 16. a4 $14 {[%emt 0:03:17]} Qb7 {[%emt 0:01:19]} 17. Rfd1 {[%emt 0:01:13]} Nd7 {[%emt 0:01:37]} 18. Nd5 {[%emt 0:01:16]} Nc5 {[%emt 0:02:44]} 19. Qa2 {[%emt 0:02:02] aiming for b4.} Kf8 {[%emt 0:04:21]} (19... e6 $14) 20. b4 $16 {[%emt 0:02:10][%cal Bb3b4,Bb4b5,Bb5a6][%mdl 32]} Nd7 {[%emt 0:01:09]} 21. b5 {[%emt 0:02:27]} Rcc8 {[%emt 0:00:58]} 22. Qf2 $36 {[%emt 0:01:38][%mdl 2048] White is on the roll. White is much more active.} Nc5 $2 {[%emt 0:01:05] [#] This move loses the game for Black.} (22... axb5 $16 23. axb5 (23. cxb5 Rxc1 24. Bxc1 Nc5 $14) 23... Nc5) 23. Qh4 $18 {[%emt 0:01:57]} h5 {[%emt 0:02:55]} 24. bxa6 {[%emt 0:06:43]} Qa7 {[%emt 0:04:24]} (24... Qd7 {was necessary.} 25. Kh1 f6) 25. g4 {[%emt 0:04:34]} hxg4 {[%emt 0:04:21]} 26. Qh7 {[%emt 0:00:43] [#] And now Bh6 would win.} e6 {[%emt 0:02:53]} (26... f6 $18 27. Bh6 Bxh6) 27. Bh6 {[%emt 0:01:25]} Bxh6 {[%emt 0:01:40]} 28. Qh8# {[%emt 0:18:00] Weighted Error Value: White=0.06 (flawless) /Black=0.70} 1-0

[Event "Israeli Team U18-ch 2022"]
[Site "Be'er Ya'akov"]
[Date "2022.08.15"]
[Round "5.11"]
[White "Dezent, Eyal"]
[Black "Ater, Yuval"]
[Result "0-1"]
[ECO "C02"]
[WhiteElo "1869"]
[BlackElo "1854"]
[Annotator "NA RC"]
[PlyCount "54"]
[EventDate "2022.08.14"]
[EventCountry "ISR"]
[SourceTitle "playchess.com"]
[Source "ChessBase"]
[SourceQuality "1"]
[TimeControl "3000+10"]

1. e4 {[%emt 0:00:29]} e6 {[%emt 0:00:05]} 2. d4 {[%emt 0:00:51]} d5 {[%emt 0:00:06]} 3. e5 {[%emt 0:00:03]} c5 {[%emt 0:00:05]} 4. c3 {[%emt 0:00:05]} Nc6 {[%emt 0:00:04]} 5. Nf3 {[%emt 0:00:05]} Qb6 {[%emt 0:00:05]} 6. Bd3 {[%emt 0:00:07]} Bd7 {[%emt 0:00:04]} 7. O-O {[%emt 0:00:06]} Rc8 {[%emt 0:00:51]} 8. Re1 {[%emt 0:01:13]} cxd4 {[%emt 0:01:16]} 9. Ng5 {[%emt 0:04:58]} Be7 {[%emt 0:06:47]} 10. Nxh7 {[%emt 0:05:16]} dxc3 {[%emt 0:04:47]} 11. Nxc3 {[%emt 0:01:21]} d4 {[%emt 0:05:18]} 12. Na4 {[%emt 0:10:15]} Qc7 {[%emt 0:04:37]} 13. Qh5 {[%emt 0:01:51]} Nxe5 {[%emt 0:02:49]} 14. Rxe5 {[%emt 0:06:42]} Bxa4 {[%emt 0:02:52]} 15. b3 {[%emt 0:02:27]} Qc3 {[%emt 0:02:51]} 16. Bb2 {[%emt 0:05:26]} Qxd3 {[%emt 0:04:19]} 17. Nf6+ {[%emt 0:02:46]} gxf6 {[%emt 0:00:41]} 18. Qxh8 {[%emt 0:01:23]} fxe5 {[%emt 0:00:22]} 19. Qxg8+ {[%emt 0:00:08]} Kd7 {[%emt 0:00:04]} 20. Qxf7 {[%emt 0:00:35]} Bc6 {[%emt 0:00:37]} 21. Ba3 {[%emt 0:00:28]} Re8 {[%emt 0:00:07]} 22. h4 {[%emt 0:00:47]} Qf5 {[%emt 0:00:51]} 23. Qg7 {[%emt 0:02:31]} Kd8 {[%emt 0:00:36]} 24. Bb2 {[%emt 0:00:48]} Bxh4 {[%emt 0:00:57]} 25. Rf1 {[%emt 0:00:36]} Qg5 {[%emt 0:01:27]} 26. Qxg5+ {[%emt 0:00:09]} Bxg5 {[%emt 0:00:01]} 27. Re1 {[%emt 0:00:06]} Bf6 {[%emt 0:00:19]} 0-1

[Event "Israeli Team U18-ch 2022"]
[Site "Be'er Ya'akov"]
[Date "2022.08.15"]
[Round "5.12"]
[White "Amitai, Ido"]
[Black "Qasem, Huda"]
[Result "0-1"]
[ECO "B30"]
[WhiteElo "1664"]
[BlackElo "1765"]
[Annotator "NA RC"]
[PlyCount "78"]
[EventDate "2022.08.14"]
[EventCountry "ISR"]
[SourceTitle "playchess.com"]
[Source "ChessBase"]
[SourceQuality "1"]
[TimeControl "3000+10"]

1. e4 {[%emt 0:00:03]} c5 {[%emt 0:00:05]} 2. Nf3 {[%emt 0:00:03]} Nc6 {[%emt 0:00:05]} 3. Bb5 {[%emt 0:00:04]} e5 {[%emt 0:00:22]} 4. O-O {[%emt 0:00:31]} Bd6 {[%emt 0:00:27]} 5. Re1 {[%emt 0:00:57]} Nge7 {[%emt 0:00:40]} 6. c3 {[%emt 0:00:31]} a6 {[%emt 0:01:10]} 7. Bf1 {[%emt 0:00:31]} O-O {[%emt 0:00:42]} 8. d4 {[%emt 0:00:29]} cxd4 {[%emt 0:01:00]} 9. cxd4 {[%emt 0:00:14]} exd4 {[%emt 0:01:55]} 10. Nxd4 {[%emt 0:00:23]} Bc7 {[%emt 0:01:13]} 11. Nc3 {[%emt 0:01:51]} Nxd4 {[%emt 0:05:18]} 12. Qxd4 {[%emt 0:00:10]} Nc6 {[%emt 0:00:04]} 13. Qd1 {[%emt 0:08:21]} d6 {[%emt 0:02:18]} 14. Nd5 {[%emt 0:01:06]} Be6 {[%emt 0:01:36]} 15. Bf4 {[%emt 0:03:52]} Ba5 {[%emt 0:04:26]} 16. Bd2 {[%emt 0:08:57]} Bxd5 {[%emt 0:04:47]} 17. Bxa5 {[%emt 0:02:19]} Qxa5 {[%emt 0:00:22]} 18. exd5 {[%emt 0:01:15]} Ne5 {[%emt 0:01:36]} 19. Qd4 {[%emt 0:00:50]} Rfe8 {[%emt 0:04:26]} 20. Re3 {[%emt 0:06:18]} Ng6 {[%emt 0:01:54]} 21. g3 {[%emt 0:03:37]} Re5 {[%emt 0:03:08]} 22. Bc4 {[%emt 0:04:18]} Rc8 {[%emt 0:01:58]} 23. Bb3 {[%emt 0:01:54]} h6 {[%emt 0:01:39]} 24. Kg2 {[%emt 0:00:35]} Rce8 {[%emt 0:01:32]} 25. Rae1 {[%emt 0:00:18]} Qxe1 {[%emt 0:02:05]} 26. Rxe1 {[%emt 0:00:01]} Rxe1 {[%emt 0:00:05]} 27. Qb6 {[%emt 0:00:17]} Ne5 {[%emt 0:01:11]} 28. Qxb7 {[%emt 0:01:04]} Re2 {[%emt 0:01:20]} 29. Ba4 {[%emt 0:00:41]} Rf8 {[%emt 0:01:16]} 30. Qb6 {[%emt 0:00:26]} Nd3 {[%emt 0:00:54]} 31. Qxa6 {[%emt 0:00:11]} Rxf2+ {[%emt 0:00:19]} 32. Kh3 {[%emt 0:01:13]} Ne5 {[%emt 0:01:06]} 33. Qxd6 {[%emt 0:00:11]} Nf3 {[%emt 0:00:12]} 34. Qa3 {[%emt 0:01:07]} f5 {[%emt 0:02:29]} 35. g4 {[%emt 0:00:19]} f4 {[%emt 0:00:34]} 36. g5 {[%emt 0:00:24]} h5 {[%emt 0:00:07]} 37. Qxf3 {[%emt 0:00:40]} Rxf3+ {[%emt 0:00:01]} 38. Kg2 {[%emt 0:00:01]} Rd3 {[%emt 0:00:11]} 39. Bd7 {[%emt 0:00:21]} f3+ {[%emt 0:00:16]} 0-1